﻿Body Name,Body,Service division categorisation,Expense Type,Date paid,Transaction Reference,Net,Supplier Name
East Lindsey District Council,http://statistics.data.gov.uk/id/local-authority/32UC,Corporate Accounting,Payroll - Attachment Of Earnings,24/06/2021,30001982,283.75 ,Child Maintenance Services
East Lindsey District Council,http://statistics.data.gov.uk/id/local-authority/32UC,Corporate Accounting,Payroll - Lincolnshire Credit Union,24/06/2021,30001988,340.00 ,Notts and Lincs Credit Union Ltd
East Lindsey District Council,http://statistics.data.gov.uk/id/local-authority/32UC,Corporate Accounting,Payroll - Unison,24/06/2021,30001980,819.70 ,Unison
East Lindsey District Council,http://statistics.data.gov.uk/id/local-authority/32UC,AD Support Services & Partnerships,Other Income,24/06/2021,30001980,-24.59 ,Unison
East Lindsey District Council,http://statistics.data.gov.uk/id/local-authority/32UC,Building Control,Agency Staff,01/07/2021,30001559,"2,405.80 ",Engie Services Limited
East Lindsey District Council,http://statistics.data.gov.uk/id/local-authority/32UC,Building Control,Subscriptions to Organisations and Other Bodies,17/06/2021,30001850,679.00 ,Bsi Membership
East Lindsey District Council,http://statistics.data.gov.uk/id/local-authority/32UC,Capital,Demolition/Site Clearance Costs,10/06/2021,30001563,"1,935.00 ",Heritage Trust of Lincolnshire Ltd
East Lindsey District Council,http://statistics.data.gov.uk/id/local-authority/32UC,Capital,Demolition/Site Clearance Costs,10/06/2021,30001643,"3,035.00 ",Heritage Trust of Lincolnshire Ltd
East Lindsey District Council,http://statistics.data.gov.uk/id/local-authority/32UC,Capital,Fixtures And Fittings,24/06/2021,30001995,"18,988.00 ",Portable Space Ltd
East Lindsey District Council,http://statistics.data.gov.uk/id/local-authority/32UC,Capital,Professional and Contractors Fees,03/06/2021,30001425,"9,350.00 ",J.J Slabs & Groundworks
East Lindsey District Council,http://statistics.data.gov.uk/id/local-authority/32UC,Capital,Professional Fees,17/06/2021,30001827,"2,824.25 ",John Peberdy Partnership
East Lindsey District Council,http://statistics.data.gov.uk/id/local-authority/32UC,Capital,Purchase of Hardware,17/06/2021,30001369,"1,775.00 ",Phoenix Software Ltd
East Lindsey District Council,http://statistics.data.gov.uk/id/local-authority/32UC,Capital,Purchase of Land,01/07/2021,30002153,"130,489.06 ",Dura-Sport Limited
East Lindsey District Council,http://statistics.data.gov.uk/id/local-authority/32UC,Capital,Works to Buildings (Main Contractor),22/06/2021,30001874,"8,383.48 ",Robert Woodhead Ltd
East Lindsey District Council,http://statistics.data.gov.uk/id/local-authority/32UC,Capital,Works to Buildings (Main Contractor),24/06/2021,30001989,"264,901.79 ",Willmott Dixon Construction Ltd
East Lindsey District Council,http://statistics.data.gov.uk/id/local-authority/32UC,Capital,Works to Buildings (Main Contractor),01/07/2021,30002154,"44,144.17 ",Dura-Sport Limited
East Lindsey District Council,http://statistics.data.gov.uk/id/local-authority/32UC,Capital,Works to Buildings (Sub Contractors),24/06/2021,30002035,490.00 ,Gelder Ltd
East Lindsey District Council,http://statistics.data.gov.uk/id/local-authority/32UC,Corporate Accounting,Insurance,29/06/2021,30001795,"24,020.00 ",The Risk Factor Ltd
East Lindsey District Council,http://statistics.data.gov.uk/id/local-authority/32UC,Corporate Accounting,Other Employee Expenses,15/06/2021,30001632,"3,204.00 ",H M Revenue and Customs
East Lindsey District Council,http://statistics.data.gov.uk/id/local-authority/32UC,Corporate Accounting,Parish Council Precepts,08/06/2021,30001450,"56,442.50 ",Spilsby Town Council
East Lindsey District Council,http://statistics.data.gov.uk/id/local-authority/32UC,Corporate Accounting,Postages,24/06/2021,30001485,341.67 ,Royal Mail Group Ltd
East Lindsey District Council,http://statistics.data.gov.uk/id/local-authority/32UC,Corporate Accounting,Professional and Contractors Fees,29/06/2021,30001668,221.38 ,Kings Armoured Security Services Ltd
East Lindsey District Council,http://statistics.data.gov.uk/id/local-authority/32UC,Corporate Accounting,Professional and Contractors Fees,24/06/2021,30001793,275.00 ,Inform Cpi Ltd
East Lindsey District Council,http://statistics.data.gov.uk/id/local-authority/32UC,Corporate Accounting,Professional and Contractors Fees,22/06/2021,30001923,"1,785.00 ",Lincolnshire County Council Pension Fund
East Lindsey District Council,http://statistics.data.gov.uk/id/local-authority/32UC,Corporate Accounting,Professional and Contractors Fees,29/06/2021,30002089,"10,718.11 ",Lincolnshire County Council Pension Fund
East Lindsey District Council,http://statistics.data.gov.uk/id/local-authority/32UC,Corporate Accounting,Professional and Contractors Fees,23/07/2021,30002183,980.00 ,Inform Cpi Ltd
East Lindsey District Council,http://statistics.data.gov.uk/id/local-authority/32UC,Corporate Management,Grants and Contributions - Where a Service is Received,10/06/2021,30001578,"2,640.00 ",GRS Signs Ltd
East Lindsey District Council,http://statistics.data.gov.uk/id/local-authority/32UC,Corporate Management,Grants and Contributions to Outside Bodies - No Service Received,08/06/2021,30001492,500.00 ,Sutton on Sea and Mablethorpe Baby Bank
East Lindsey District Council,http://statistics.data.gov.uk/id/local-authority/32UC,Corporate Management,Grants and Contributions to Outside Bodies - No Service Received,10/06/2021,30001579,640.00 ,Harlite Installations Ltd
East Lindsey District Council,http://statistics.data.gov.uk/id/local-authority/32UC,Corporate Management,Grants and Contributions to Outside Bodies - No Service Received,17/06/2021,30001702,"1,000.00 ",Popcorn Media
East Lindsey District Council,http://statistics.data.gov.uk/id/local-authority/32UC,Corporate Management,Grants and Contributions to Outside Bodies - No Service Received,24/06/2021,30001880,"5,672.00 ",Rural Retailer Ltd
East Lindsey District Council,http://statistics.data.gov.uk/id/local-authority/32UC,Corporate Management,Grants and Contributions to Outside Bodies - No Service Received,24/06/2021,30001996,"1,188.40 ",The Old Warehouse Larders
East Lindsey District Council,http://statistics.data.gov.uk/id/local-authority/32UC,Corporate Management,Grants and Contributions to Outside Bodies - No Service Received,06/07/2021,30002017,"1,828.91 ",Amberol Ltd
East Lindsey District Council,http://statistics.data.gov.uk/id/local-authority/32UC,Corporate Management,Lincolnshire Legal Services,08/06/2021,30001546,"12,732.87 ",Lincolnshire County Council
East Lindsey District Council,http://statistics.data.gov.uk/id/local-authority/32UC,Corporate Management,Materials and Consumables,10/06/2021,30001655,"1,649.40 ",Eastern Shires Purchasing Organisation
East Lindsey District Council,http://statistics.data.gov.uk/id/local-authority/32UC,Corporate Management,Mobile Phones,23/07/2021,30002118,348.83 ,Vodafone Ltd Corporate
East Lindsey District Council,http://statistics.data.gov.uk/id/local-authority/32UC,Corporate Management,Mobile Phones,23/07/2021,30002119,348.83 ,Vodafone Ltd Corporate
East Lindsey District Council,http://statistics.data.gov.uk/id/local-authority/32UC,Corporate Management,Mobile Phones,23/07/2021,30002120,348.83 ,Vodafone Ltd Corporate
East Lindsey District Council,http://statistics.data.gov.uk/id/local-authority/32UC,Corporate Management,Postages,29/06/2021,30002047,"9,000.00 ",Quadient UK Ltd
East Lindsey District Council,http://statistics.data.gov.uk/id/local-authority/32UC,Corporate Management,Premises Insurance,17/06/2021,30001693,720.00 ,British Engineering Services
East Lindsey District Council,http://statistics.data.gov.uk/id/local-authority/32UC,Corporate Management,Premises Insurance,24/06/2021,30001695,"6,480.94 ",British Engineering Services
East Lindsey District Council,http://statistics.data.gov.uk/id/local-authority/32UC,Corporate Management,Public Sector Partnership Services,24/06/2021,30001934,"437,944.75 ",Public Sector Partnership Services Ltd
East Lindsey District Council,http://statistics.data.gov.uk/id/local-authority/32UC,Corporate Management,Subscriptions to Organisations and Other Bodies,24/06/2021,30001456,"2,150.00 ",Turnstone Coaching Solutions Ltd
East Lindsey District Council,http://statistics.data.gov.uk/id/local-authority/32UC,Corporate Management,Subscriptions to Organisations and Other Bodies,01/07/2021,30001761,"1,650.00 ",Sandra Whiles Coaching Ltd
East Lindsey District Council,http://statistics.data.gov.uk/id/local-authority/32UC,Corporate Management,Vehicle Hire,01/07/2021,30002109,272.18 ,Tjs Self Drive
East Lindsey District Council,http://statistics.data.gov.uk/id/local-authority/32UC,Corporate Management,Vehicle Hire,01/07/2021,30002110,272.18 ,Tjs Self Drive
East Lindsey District Council,http://statistics.data.gov.uk/id/local-authority/32UC,Corporate Management,Vehicle Hire,01/07/2021,30002111,272.18 ,Tjs Self Drive
East Lindsey District Council,http://statistics.data.gov.uk/id/local-authority/32UC,Cultural & Rated Services,Other Miscellaneous Expenses,15/06/2021,30001799,"10,000.00 ",Magna Vitae
East Lindsey District Council,http://statistics.data.gov.uk/id/local-authority/32UC,DC Revenues & Benefits,Court Costs,01/07/2021,30002189,"1,156.00 ",Central Finance Unit
East Lindsey District Council,http://statistics.data.gov.uk/id/local-authority/32UC,Development Control,Other Private Contractors,22/06/2021,30001783,"27,744.00 ",Lincolnshire County Council
East Lindsey District Council,http://statistics.data.gov.uk/id/local-authority/32UC,Development Control,Planning Application Fees,24/06/2021,30001945,"3,500.00 ",PERSONAL INFORMATION REDACTED
East Lindsey District Council,http://statistics.data.gov.uk/id/local-authority/32UC,Development Control,Planning Application Fees,24/06/2021,30001964,462.00 ,Portal Plan Quest Ltd
East Lindsey District Council,http://statistics.data.gov.uk/id/local-authority/32UC,Development Control,Planning Application Fees,29/06/2021,30002030,896.24 ,Portal Plan Quest Ltd
East Lindsey District Council,http://statistics.data.gov.uk/id/local-authority/32UC,Development Control,Professional and Contractors Fees,24/06/2021,30001917,"16,898.26 ",Create Consulting Engineers Ltd
East Lindsey District Council,http://statistics.data.gov.uk/id/local-authority/32UC,Development Control,Professional and Contractors Fees,22/06/2021,30001918,787.00 ,ProMediate UK Ltd
East Lindsey District Council,http://statistics.data.gov.uk/id/local-authority/32UC,East Lindsey Balance Sheet,Long Term Debtors - Other,29/06/2021,30002079,"8,765.00 ",Close Brothers Motor Finance
East Lindsey District Council,http://statistics.data.gov.uk/id/local-authority/32UC,East Lindsey Collection Fund,Transfer Payment to BID,10/06/2021,30001568,"28,793.76 ",Lincolnshire Coastal Destination Bid
East Lindsey District Council,http://statistics.data.gov.uk/id/local-authority/32UC,Enforcement,Legal Fees,17/06/2021,30001824,"84,088.53 ",Picasso Legal
East Lindsey District Council,http://statistics.data.gov.uk/id/local-authority/32UC,Enforcement,Materials and Consumables,17/06/2021,30001816,325.00 ,Waste Away Clearance Service
East Lindsey District Council,http://statistics.data.gov.uk/id/local-authority/32UC,Enforcement,Professional and Contractors Fees,17/06/2021,30001817,"20,500.00 ",Waste Away Clearance Service
East Lindsey District Council,http://statistics.data.gov.uk/id/local-authority/32UC,Enforcement,Professional and Contractors Fees,17/06/2021,30001818,"2,500.00 ",Waste Away Clearance Service
East Lindsey District Council,http://statistics.data.gov.uk/id/local-authority/32UC,Environmental Health,Furniture and Equipment,15/07/2021,30001854,863.00 ,Campbell Associates Ltd
East Lindsey District Council,http://statistics.data.gov.uk/id/local-authority/32UC,Environmental Health,Professional and Contractors Fees,24/06/2021,30001405,"1,480.00 ",The Oyster Partnership Ltd
East Lindsey District Council,http://statistics.data.gov.uk/id/local-authority/32UC,Environmental Health,Professional and Contractors Fees,17/06/2021,30001406,"1,480.00 ",The Oyster Partnership Ltd
East Lindsey District Council,http://statistics.data.gov.uk/id/local-authority/32UC,Environmental Health,Professional and Contractors Fees,24/06/2021,30001519,956.25 ,G2 Recruitment Solutions
East Lindsey District Council,http://statistics.data.gov.uk/id/local-authority/32UC,Environmental Health,Professional and Contractors Fees,01/07/2021,30001527,"1,480.00 ",The Oyster Partnership Ltd
East Lindsey District Council,http://statistics.data.gov.uk/id/local-authority/32UC,Environmental Health,Professional and Contractors Fees,10/06/2021,30001580,507.73 ,Ark Givendale Ltd
East Lindsey District Council,http://statistics.data.gov.uk/id/local-authority/32UC,Environmental Health,Professional and Contractors Fees,10/06/2021,30001581,"1,137.23 ",Ark Givendale Ltd
East Lindsey District Council,http://statistics.data.gov.uk/id/local-authority/32UC,Environmental Health,Professional and Contractors Fees,24/06/2021,30001730,"1,602.07 ",Sharon Redrobe Ltd
East Lindsey District Council,http://statistics.data.gov.uk/id/local-authority/32UC,Environmental Health,Professional and Contractors Fees,08/07/2021,30001822,956.25 ,G2 Recruitment Solutions
East Lindsey District Council,http://statistics.data.gov.uk/id/local-authority/32UC,Environmental Health,Professional and Contractors Fees,17/06/2021,30001855,956.25 ,G2 Recruitment Solutions
East Lindsey District Council,http://statistics.data.gov.uk/id/local-authority/32UC,Environmental Health,Professional and Contractors Fees,08/07/2021,30001872,"1,184.00 ",The Oyster Partnership Ltd
East Lindsey District Council,http://statistics.data.gov.uk/id/local-authority/32UC,Environmental Health,Professional and Contractors Fees,01/07/2021,30001912,"1,300.00 ",Arnold Funeral Service
East Lindsey District Council,http://statistics.data.gov.uk/id/local-authority/32UC,Environmental Health,Professional and Contractors Fees,15/07/2021,30002023,"1,480.00 ",The Oyster Partnership Ltd
East Lindsey District Council,http://statistics.data.gov.uk/id/local-authority/32UC,Environmental Health,Professional and Contractors Fees,27/07/2021,30002101,"2,164.58 ",Cracknell Wildlife & Veterinary Services
East Lindsey District Council,http://statistics.data.gov.uk/id/local-authority/32UC,Growth Relationships & Growth Promotions,Advertising - Events,10/06/2021,30001602,500.00 ,County Life Ltd
East Lindsey District Council,http://statistics.data.gov.uk/id/local-authority/32UC,Growth Relationships & Growth Promotions,Employee Professional Subscriptions (Non-Payroll),22/06/2021,30001960,599.00 ,The Institute of Economic Development
East Lindsey District Council,http://statistics.data.gov.uk/id/local-authority/32UC,Growth Relationships & Growth Promotions,Grants and Contributions - Where a Service is Received,23/07/2021,30002188,"5,000.00 ",Alford Craft Market
East Lindsey District Council,http://statistics.data.gov.uk/id/local-authority/32UC,Growth Relationships & Growth Promotions,Other Communication Costs,08/06/2021,30001525,"1,000.00 ",Distract Ltd
East Lindsey District Council,http://statistics.data.gov.uk/id/local-authority/32UC,Growth Relationships & Growth Promotions,Other Communication Costs,17/06/2021,30001642,"1,000.00 ",Distract Ltd
East Lindsey District Council,http://statistics.data.gov.uk/id/local-authority/32UC,Growth Relationships & Growth Promotions,Other Miscellaneous Expenses,10/06/2021,30001630,350.00 ,Lincolnshire County Council
East Lindsey District Council,http://statistics.data.gov.uk/id/local-authority/32UC,Growth Relationships & Growth Promotions,Other Miscellaneous Expenses,24/06/2021,30002008,"3,600.00 ",Skillsreach
East Lindsey District Council,http://statistics.data.gov.uk/id/local-authority/32UC,Growth Relationships & Growth Promotions,Professional and Contractors Fees,17/06/2021,30001547,"1,704.50 ",Aspbury Planning Ltd
East Lindsey District Council,http://statistics.data.gov.uk/id/local-authority/32UC,Growth Relationships & Growth Promotions,Professional and Contractors Fees,10/06/2021,30001556,"5,000.00 ",Rose Regeneration Ltd
East Lindsey District Council,http://statistics.data.gov.uk/id/local-authority/32UC,Growth Relationships & Growth Promotions,Professional and Contractors Fees,15/06/2021,30001557,"18,000.00 ",Magna Vitae
East Lindsey District Council,http://statistics.data.gov.uk/id/local-authority/32UC,Growth Relationships & Growth Promotions,Professional and Contractors Fees,10/06/2021,30001600,"4,950.00 ",Banks Long and Co Ltd
East Lindsey District Council,http://statistics.data.gov.uk/id/local-authority/32UC,Growth Relationships & Growth Promotions,Professional and Contractors Fees,06/07/2021,30001997,750.00 ,EJ Parker Technical Services (Louth) Ltd
East Lindsey District Council,http://statistics.data.gov.uk/id/local-authority/32UC,Growth Relationships & Growth Promotions,Professional and Contractors Fees,01/07/2021,30001999,"7,500.00 ",Rose Regeneration Ltd
East Lindsey District Council,http://statistics.data.gov.uk/id/local-authority/32UC,Growth Relationships & Growth Promotions,Professional and Contractors Fees,06/07/2021,30002088,"3,300.00 ",Collison & Associates Limited
East Lindsey District Council,http://statistics.data.gov.uk/id/local-authority/32UC,Housing Advice & Homelessness,Computer Software Purchase,24/06/2021,30001410,"1,848.00 ",Housing Partners Limited
East Lindsey District Council,http://statistics.data.gov.uk/id/local-authority/32UC,Housing Advice & Homelessness,Computer Software Purchase,22/06/2021,30001932,"9,950.00 ",Housing Partners Limited
East Lindsey District Council,http://statistics.data.gov.uk/id/local-authority/32UC,Housing Advice & Homelessness,Electricity,03/06/2021,30001449,119.03 ,British Gas
East Lindsey District Council,http://statistics.data.gov.uk/id/local-authority/32UC,Housing Advice & Homelessness,Electricity,10/06/2021,30001542,119.03 ,British Gas
East Lindsey District Council,http://statistics.data.gov.uk/id/local-authority/32UC,Housing Advice & Homelessness,Electricity,24/06/2021,30001947,129.31 ,EDF Energy
East Lindsey District Council,http://statistics.data.gov.uk/id/local-authority/32UC,Housing Advice & Homelessness,Electricity,24/06/2021,30001959,135.39 ,EDF Energy
East Lindsey District Council,http://statistics.data.gov.uk/id/local-authority/32UC,Housing Advice & Homelessness,Furniture and Equipment,03/06/2021,30001408,287.50 ,Keystone Locks
East Lindsey District Council,http://statistics.data.gov.uk/id/local-authority/32UC,Housing Advice & Homelessness,Furniture and Equipment,22/06/2021,30001876,810.00 ,Safe Sound Security Systems Links Ltd
East Lindsey District Council,http://statistics.data.gov.uk/id/local-authority/32UC,Housing Advice & Homelessness,Gas,03/06/2021,30001449,210.73 ,British Gas
East Lindsey District Council,http://statistics.data.gov.uk/id/local-authority/32UC,Housing Advice & Homelessness,Gas,10/06/2021,30001542,210.73 ,British Gas
East Lindsey District Council,http://statistics.data.gov.uk/id/local-authority/32UC,Housing Advice & Homelessness,Gas,15/06/2021,30001633,510.35 ,Southern Electric
East Lindsey District Council,http://statistics.data.gov.uk/id/local-authority/32UC,Housing Advice & Homelessness,Gas,15/06/2021,30001638,332.56 ,Southern Electric
East Lindsey District Council,http://statistics.data.gov.uk/id/local-authority/32UC,Housing Advice & Homelessness,Gas,24/06/2021,30001947,198.27 ,EDF Energy
East Lindsey District Council,http://statistics.data.gov.uk/id/local-authority/32UC,Housing Advice & Homelessness,Gas,24/06/2021,30001959,191.96 ,EDF Energy
East Lindsey District Council,http://statistics.data.gov.uk/id/local-authority/32UC,Housing Advice & Homelessness,Grants and Contributions - Where a Service is Received,22/06/2021,30001511,"105,000.00 ",Platform Housing Limited
East Lindsey District Council,http://statistics.data.gov.uk/id/local-authority/32UC,Housing Advice & Homelessness,Grants and Contributions to Outside Bodies - No Service Received,01/06/2021,30001401,"5,257.10 ",Gelder Ltd
East Lindsey District Council,http://statistics.data.gov.uk/id/local-authority/32UC,Housing Advice & Homelessness,Grants and Contributions to Outside Bodies - No Service Received,01/06/2021,30001402,"7,916.44 ",Belton Construction
East Lindsey District Council,http://statistics.data.gov.uk/id/local-authority/32UC,Housing Advice & Homelessness,Grants and Contributions to Outside Bodies - No Service Received,01/06/2021,30001409,"5,371.43 ",THM Construction
East Lindsey District Council,http://statistics.data.gov.uk/id/local-authority/32UC,Housing Advice & Homelessness,Grants and Contributions to Outside Bodies - No Service Received,08/06/2021,30001464,"8,104.38 ",Andrew Wrisdale Building Contractor
East Lindsey District Council,http://statistics.data.gov.uk/id/local-authority/32UC,Housing Advice & Homelessness,Grants and Contributions to Outside Bodies - No Service Received,08/06/2021,30001466,"5,769.78 ",Lincolnshire Bathrooms and Wetrooms
East Lindsey District Council,http://statistics.data.gov.uk/id/local-authority/32UC,Housing Advice & Homelessness,Grants and Contributions to Outside Bodies - No Service Received,08/06/2021,30001487,"3,723.59 ",PERSONAL INFORMATION REDACTED
East Lindsey District Council,http://statistics.data.gov.uk/id/local-authority/32UC,Housing Advice & Homelessness,Grants and Contributions to Outside Bodies - No Service Received,10/06/2021,30001516,"7,114.50 ",Andrew Wrisdale Building Contractor
East Lindsey District Council,http://statistics.data.gov.uk/id/local-authority/32UC,Housing Advice & Homelessness,Grants and Contributions to Outside Bodies - No Service Received,10/06/2021,30001551,400.00 ,GF Design Services
East Lindsey District Council,http://statistics.data.gov.uk/id/local-authority/32UC,Housing Advice & Homelessness,Grants and Contributions to Outside Bodies - No Service Received,10/06/2021,30001553,850.00 ,GF Design Services
East Lindsey District Council,http://statistics.data.gov.uk/id/local-authority/32UC,Housing Advice & Homelessness,Grants and Contributions to Outside Bodies - No Service Received,15/06/2021,30001573,"1,500.00 ",GF Design Services
East Lindsey District Council,http://statistics.data.gov.uk/id/local-authority/32UC,Housing Advice & Homelessness,Grants and Contributions to Outside Bodies - No Service Received,15/06/2021,30001574,600.00 ,GF Design Services
East Lindsey District Council,http://statistics.data.gov.uk/id/local-authority/32UC,Housing Advice & Homelessness,Grants and Contributions to Outside Bodies - No Service Received,15/06/2021,30001575,"3,784.20 ",Andrew Wrisdale Building Contractor
East Lindsey District Council,http://statistics.data.gov.uk/id/local-authority/32UC,Housing Advice & Homelessness,Grants and Contributions to Outside Bodies - No Service Received,15/06/2021,30001576,"12,332.84 ",Andrew Wrisdale Building Contractor
East Lindsey District Council,http://statistics.data.gov.uk/id/local-authority/32UC,Housing Advice & Homelessness,Grants and Contributions to Outside Bodies - No Service Received,15/06/2021,30001597,895.20 ,Andrew Wrisdale Building Contractor
East Lindsey District Council,http://statistics.data.gov.uk/id/local-authority/32UC,Housing Advice & Homelessness,Grants and Contributions to Outside Bodies - No Service Received,15/06/2021,30001645,"2,698.27 ",THM Construction
East Lindsey District Council,http://statistics.data.gov.uk/id/local-authority/32UC,Housing Advice & Homelessness,Grants and Contributions to Outside Bodies - No Service Received,15/06/2021,30001653,"5,460.21 ",Baptist Building and Roofing Co Ltd
East Lindsey District Council,http://statistics.data.gov.uk/id/local-authority/32UC,Housing Advice & Homelessness,Grants and Contributions to Outside Bodies - No Service Received,22/06/2021,30001748,"1,819.55 ",Dolphin Mobility
East Lindsey District Council,http://statistics.data.gov.uk/id/local-authority/32UC,Housing Advice & Homelessness,Grants and Contributions to Outside Bodies - No Service Received,22/06/2021,30001749,"7,579.41 ",Brians Building Services
East Lindsey District Council,http://statistics.data.gov.uk/id/local-authority/32UC,Housing Advice & Homelessness,Grants and Contributions to Outside Bodies - No Service Received,22/06/2021,30001750,"8,718.39 ",Mark Donner Ltd
East Lindsey District Council,http://statistics.data.gov.uk/id/local-authority/32UC,Housing Advice & Homelessness,Grants and Contributions to Outside Bodies - No Service Received,08/07/2021,30001766,"4,071.45 ",Hugh Steeper Ltd
East Lindsey District Council,http://statistics.data.gov.uk/id/local-authority/32UC,Housing Advice & Homelessness,Grants and Contributions to Outside Bodies - No Service Received,22/06/2021,30001790,"8,434.62 ",Brothertoft Build Ltd
East Lindsey District Council,http://statistics.data.gov.uk/id/local-authority/32UC,Housing Advice & Homelessness,Grants and Contributions to Outside Bodies - No Service Received,22/06/2021,30001819,"5,040.18 ",Belton Construction
East Lindsey District Council,http://statistics.data.gov.uk/id/local-authority/32UC,Housing Advice & Homelessness,Grants and Contributions to Outside Bodies - No Service Received,22/06/2021,30001823,"5,313.01 ",Belton Construction
East Lindsey District Council,http://statistics.data.gov.uk/id/local-authority/32UC,Housing Advice & Homelessness,Grants and Contributions to Outside Bodies - No Service Received,22/06/2021,30001841,"6,332.80 ",Warics Ltd
East Lindsey District Council,http://statistics.data.gov.uk/id/local-authority/32UC,Housing Advice & Homelessness,Grants and Contributions to Outside Bodies - No Service Received,22/06/2021,30001852,729.53 ,Warics Ltd
East Lindsey District Council,http://statistics.data.gov.uk/id/local-authority/32UC,Housing Advice & Homelessness,Grants and Contributions to Outside Bodies - No Service Received,22/06/2021,30001881,336.00 ,Hodgkinsons Soilicitors
East Lindsey District Council,http://statistics.data.gov.uk/id/local-authority/32UC,Housing Advice & Homelessness,Grants and Contributions to Outside Bodies - No Service Received,22/06/2021,30001885,"5,515.77 ",Gary Walmsley Construction
East Lindsey District Council,http://statistics.data.gov.uk/id/local-authority/32UC,Housing Advice & Homelessness,Grants and Contributions to Outside Bodies - No Service Received,13/07/2021,30001904,255.00 ,SSAFA
East Lindsey District Council,http://statistics.data.gov.uk/id/local-authority/32UC,Housing Advice & Homelessness,Grants and Contributions to Outside Bodies - No Service Received,24/06/2021,30001940,"6,484.32 ",R A Joinery
East Lindsey District Council,http://statistics.data.gov.uk/id/local-authority/32UC,Housing Advice & Homelessness,Grants and Contributions to Outside Bodies - No Service Received,24/06/2021,30001965,"5,593.26 ",Andrew Wrisdale Building Contractor
East Lindsey District Council,http://statistics.data.gov.uk/id/local-authority/32UC,Housing Advice & Homelessness,Grants and Contributions to Outside Bodies - No Service Received,29/06/2021,30002070,"9,443.76 ",Ron Gale and Sons Ltd
East Lindsey District Council,http://statistics.data.gov.uk/id/local-authority/32UC,Housing Advice & Homelessness,Grants and Contributions to Outside Bodies - No Service Received,29/06/2021,30002076,"10,000.00 ",THM Construction
East Lindsey District Council,http://statistics.data.gov.uk/id/local-authority/32UC,Housing Advice & Homelessness,Grants and Contributions to Outside Bodies - No Service Received,29/06/2021,30002078,435.00 ,Sultan Investments London
East Lindsey District Council,http://statistics.data.gov.uk/id/local-authority/32UC,Housing Advice & Homelessness,Grants and Contributions to Outside Bodies - No Service Received,29/06/2021,30002083,"4,492.35 ",Walkers Construction Ltd
East Lindsey District Council,http://statistics.data.gov.uk/id/local-authority/32UC,Housing Advice & Homelessness,Grants and Contributions to Outside Bodies - No Service Received,29/06/2021,30002084,"4,700.00 ",PERSONAL INFORMATION REDACTED
East Lindsey District Council,http://statistics.data.gov.uk/id/local-authority/32UC,Housing Advice & Homelessness,Grants and Contributions to Outside Bodies - No Service Received,01/07/2021,30002104,"15,000.00 ",THM Construction
East Lindsey District Council,http://statistics.data.gov.uk/id/local-authority/32UC,Housing Advice & Homelessness,Other local authorities,01/06/2021,30000892,"40,634.00 ",City of Lincoln Council
East Lindsey District Council,http://statistics.data.gov.uk/id/local-authority/32UC,Housing Advice & Homelessness,Other local authorities,29/06/2021,30001514,727.37 ,Alertcom Limited
East Lindsey District Council,http://statistics.data.gov.uk/id/local-authority/32UC,Housing Advice & Homelessness,Other Miscellaneous Expenses,03/06/2021,30001430,400.00 ,Void Property Cleaning Services Vpcs
East Lindsey District Council,http://statistics.data.gov.uk/id/local-authority/32UC,Housing Advice & Homelessness,Other Miscellaneous Expenses,29/06/2021,30001520,"1,100.00 ",Corps Monitoring Ltd
East Lindsey District Council,http://statistics.data.gov.uk/id/local-authority/32UC,Housing Advice & Homelessness,Staff Training Expenses (Non-Payroll),24/06/2021,30001892,236.64 ,First College
East Lindsey District Council,http://statistics.data.gov.uk/id/local-authority/32UC,Housing Advice & Homelessness,Stationery,24/06/2021,30001545,137.67 ,Complete Business Solutions Group Ltd
East Lindsey District Council,http://statistics.data.gov.uk/id/local-authority/32UC,Housing Advice & Homelessness,Water and Sewerage Charges,01/07/2021,30001922,755.58 ,Anglian Water
East Lindsey District Council,http://statistics.data.gov.uk/id/local-authority/32UC,Information Technology,Computer Hardware Maintenance,08/07/2021,30001724,462.13 ,Direct Telecommunications Systems
East Lindsey District Council,http://statistics.data.gov.uk/id/local-authority/32UC,Information Technology,Computer Hardware Maintenance,08/07/2021,30001742,"16,313.40 ",Softcat Plc
East Lindsey District Council,http://statistics.data.gov.uk/id/local-authority/32UC,Information Technology,Computer Hardware Maintenance,08/07/2021,30001743,"14,462.80 ",Softcat Plc
East Lindsey District Council,http://statistics.data.gov.uk/id/local-authority/32UC,Information Technology,Computer Software Licence Costs,01/07/2021,30001625,"9,651.32 ",Axial Systems Ltd
East Lindsey District Council,http://statistics.data.gov.uk/id/local-authority/32UC,Information Technology,Computer Software Licence Costs,22/06/2021,30001886,"28,759.20 ",GGP Systems
East Lindsey District Council,http://statistics.data.gov.uk/id/local-authority/32UC,Information Technology,Computer Software Licence Costs,24/06/2021,30001935,"37,750.50 ",Public Sector Partnership Services Ltd
East Lindsey District Council,http://statistics.data.gov.uk/id/local-authority/32UC,Information Technology,Materials and Consumables,15/07/2021,30001888,433.45 ,Banner Group Ltd Ta Spectrum
East Lindsey District Council,http://statistics.data.gov.uk/id/local-authority/32UC,Information Technology,Other Communication Costs,29/06/2021,30001468,"1,361.21 ",Multidata
East Lindsey District Council,http://statistics.data.gov.uk/id/local-authority/32UC,Information Technology,Professional and Contractors Fees,22/06/2021,30001366,"3,145.00 ",Phoenix Software Ltd
East Lindsey District Council,http://statistics.data.gov.uk/id/local-authority/32UC,Information Technology,Professional and Contractors Fees,01/07/2021,30001652,"3,870.00 ",Civica UK Ltd
East Lindsey District Council,http://statistics.data.gov.uk/id/local-authority/32UC,Information Technology,Professional and Contractors Fees,22/06/2021,30001930,"1,800.00 ",5b Network Consultancy Ltd
East Lindsey District Council,http://statistics.data.gov.uk/id/local-authority/32UC,Information Technology,Subscriptions to Organisations and Other Bodies,24/06/2021,30001549,306.00 ,Nottingham City Council
East Lindsey District Council,http://statistics.data.gov.uk/id/local-authority/32UC,Information Technology,Telephones,10/06/2021,30001627,"1,009.61 ",Nominet UK
East Lindsey District Council,http://statistics.data.gov.uk/id/local-authority/32UC,Information Technology,Telephones,29/06/2021,30001644,"2,381.09 ",Daisy Corporate Services Trading Ltd
East Lindsey District Council,http://statistics.data.gov.uk/id/local-authority/32UC,Information Technology,Telephones,15/07/2021,30002115,348.83 ,Vodafone Ltd Corporate
East Lindsey District Council,http://statistics.data.gov.uk/id/local-authority/32UC,Leisure Operations,Buildings Maintenance - Programmed,24/06/2021,30001438,369.75 ,TVF UK Limited
East Lindsey District Council,http://statistics.data.gov.uk/id/local-authority/32UC,Leisure Operations,Buildings Maintenance - Programmed,24/06/2021,30001439,"1,267.50 ",TVF UK Limited
East Lindsey District Council,http://statistics.data.gov.uk/id/local-authority/32UC,Leisure Operations,Buildings Maintenance - Programmed,17/06/2021,30001505,"15,984.47 ",Centrica Business Solutions
East Lindsey District Council,http://statistics.data.gov.uk/id/local-authority/32UC,Leisure Operations,Buildings Maintenance - Programmed,24/06/2021,30001526,525.00 ,Airco Refrigeration Air Conditioning Ltd
East Lindsey District Council,http://statistics.data.gov.uk/id/local-authority/32UC,Leisure Operations,Buildings Maintenance - Programmed,29/06/2021,30001577,500.00 ,Aegis Technologies
East Lindsey District Council,http://statistics.data.gov.uk/id/local-authority/32UC,Leisure Operations,Buildings Maintenance - Programmed,29/06/2021,30001620,"1,107.00 ",Aegis Technologies
East Lindsey District Council,http://statistics.data.gov.uk/id/local-authority/32UC,Leisure Operations,Buildings Maintenance - Programmed,20/07/2021,30001961,709.95 ,Evoqua Water Technologies Ltd
East Lindsey District Council,http://statistics.data.gov.uk/id/local-authority/32UC,Leisure Operations,Buildings Maintenance - Programmed,20/07/2021,30001962,720.22 ,Evoqua Water Technologies Ltd
East Lindsey District Council,http://statistics.data.gov.uk/id/local-authority/32UC,Leisure Operations,Buildings Maintenance - Programmed,23/07/2021,30002081,"1,468.80 ",Park Control Systems Ltd
East Lindsey District Council,http://statistics.data.gov.uk/id/local-authority/32UC,Leisure Operations,Buildings Maintenance - Responsive,23/07/2021,30002069,639.00 ,H20 Servicing Ltd
East Lindsey District Council,http://statistics.data.gov.uk/id/local-authority/32UC,Leisure Operations,Buildings Maintenance - Responsive,20/07/2021,30002075,242.00 ,Airco Refrigeration Air Conditioning Ltd
East Lindsey District Council,http://statistics.data.gov.uk/id/local-authority/32UC,Leisure Operations,Buildings Maintenance - Responsive,01/07/2021,30002085,"2,219.51 ",Aaron Services Ltd
East Lindsey District Council,http://statistics.data.gov.uk/id/local-authority/32UC,Neighbourhoods,Agency Staff,01/06/2021,30001407,"10,302.99 ",The Workshop (Wisbech) Ltd
East Lindsey District Council,http://statistics.data.gov.uk/id/local-authority/32UC,Neighbourhoods,Agency Staff,10/06/2021,30001605,417.60 ,Reilyn Ltd
East Lindsey District Council,http://statistics.data.gov.uk/id/local-authority/32UC,Neighbourhoods,Agency Staff,17/06/2021,30001710,696.00 ,Reilyn Ltd
East Lindsey District Council,http://statistics.data.gov.uk/id/local-authority/32UC,Neighbourhoods,Agency Staff,15/06/2021,30001731,"8,693.36 ",The Workshop (Wisbech) Ltd
East Lindsey District Council,http://statistics.data.gov.uk/id/local-authority/32UC,Neighbourhoods,Agency Staff,24/06/2021,30001891,696.00 ,Reilyn Ltd
East Lindsey District Council,http://statistics.data.gov.uk/id/local-authority/32UC,Neighbourhoods,Agency Staff,24/06/2021,30001896,"8,377.17 ",The Workshop (Wisbech) Ltd
East Lindsey District Council,http://statistics.data.gov.uk/id/local-authority/32UC,Neighbourhoods,Agency Staff,24/06/2021,30001973,"10,399.72 ",The Workshop (Wisbech) Ltd
East Lindsey District Council,http://statistics.data.gov.uk/id/local-authority/32UC,Neighbourhoods,Agency Staff,01/07/2021,30002054,"9,462.99 ",The Workshop (Wisbech) Ltd
East Lindsey District Council,http://statistics.data.gov.uk/id/local-authority/32UC,Neighbourhoods,Agency Staff,01/07/2021,30002059,626.40 ,Reilyn Ltd
East Lindsey District Council,http://statistics.data.gov.uk/id/local-authority/32UC,Neighbourhoods,Buildings Maintenance - Programmed,08/06/2021,30001377,"1,240.00 ",Bluestone Sales
East Lindsey District Council,http://statistics.data.gov.uk/id/local-authority/32UC,Neighbourhoods,Buildings Maintenance - Programmed,08/06/2021,30001379,"1,033.33 ",Bluestone Sales
East Lindsey District Council,http://statistics.data.gov.uk/id/local-authority/32UC,Neighbourhoods,Buildings Maintenance - Programmed,08/06/2021,30001380,"1,033.33 ",Bluestone Sales
East Lindsey District Council,http://statistics.data.gov.uk/id/local-authority/32UC,Neighbourhoods,Buildings Maintenance - Programmed,10/06/2021,30001506,"4,657.00 ",Devlin Decorators Limited
East Lindsey District Council,http://statistics.data.gov.uk/id/local-authority/32UC,Neighbourhoods,Buildings Maintenance - Programmed,15/06/2021,30001552,750.00 ,PERSONAL INFORMATION REDACTED
East Lindsey District Council,http://statistics.data.gov.uk/id/local-authority/32UC,Neighbourhoods,Buildings Maintenance - Programmed,10/06/2021,30001566,"5,255.00 ",Devlin Decorators Limited
East Lindsey District Council,http://statistics.data.gov.uk/id/local-authority/32UC,Neighbourhoods,Buildings Maintenance - Programmed,01/07/2021,30001692,"3,604.20 ",Evoqua Water Technologies Ltd
East Lindsey District Council,http://statistics.data.gov.uk/id/local-authority/32UC,Neighbourhoods,Buildings Maintenance - Programmed,24/06/2021,30001941,352.00 ,BG Engineering Services Ltd
East Lindsey District Council,http://statistics.data.gov.uk/id/local-authority/32UC,Neighbourhoods,Buildings Maintenance - Programmed,20/07/2021,30001957,511.20 ,Evoqua Water Technologies Ltd
East Lindsey District Council,http://statistics.data.gov.uk/id/local-authority/32UC,Neighbourhoods,Buildings Maintenance - Programmed,20/07/2021,30001958,341.34 ,Evoqua Water Technologies Ltd
East Lindsey District Council,http://statistics.data.gov.uk/id/local-authority/32UC,Neighbourhoods,Buildings Maintenance - Programmed,20/07/2021,30001967,530.20 ,Evoqua Water Technologies Ltd
East Lindsey District Council,http://statistics.data.gov.uk/id/local-authority/32UC,Neighbourhoods,Buildings Maintenance - Responsive,24/06/2021,30001500,564.76 ,Stowlin Ltd
East Lindsey District Council,http://statistics.data.gov.uk/id/local-authority/32UC,Neighbourhoods,Buildings Maintenance - Responsive,24/06/2021,30001502,554.76 ,Stowlin Ltd
East Lindsey District Council,http://statistics.data.gov.uk/id/local-authority/32UC,Neighbourhoods,Buildings Maintenance - Responsive,15/07/2021,30001899,429.88 ,Stowlin Ltd
East Lindsey District Council,http://statistics.data.gov.uk/id/local-authority/32UC,Neighbourhoods,Buildings Maintenance - Responsive,15/07/2021,30001902,227.65 ,Stowlin Ltd
East Lindsey District Council,http://statistics.data.gov.uk/id/local-authority/32UC,Neighbourhoods,Buildings Maintenance - Responsive,13/07/2021,30001926,324.50 ,Stowlin Ltd
East Lindsey District Council,http://statistics.data.gov.uk/id/local-authority/32UC,Neighbourhoods,Buildings Maintenance - Responsive,23/07/2021,30002019,829.00 ,Stowlin Ltd
East Lindsey District Council,http://statistics.data.gov.uk/id/local-authority/32UC,Neighbourhoods,Buildings Maintenance - Responsive,23/07/2021,30002061,949.51 ,Stowlin Ltd
East Lindsey District Council,http://statistics.data.gov.uk/id/local-authority/32UC,Neighbourhoods,Buildings Maintenance - Responsive,23/07/2021,30002062,723.75 ,Stowlin Ltd
East Lindsey District Council,http://statistics.data.gov.uk/id/local-authority/32UC,Neighbourhoods,Clothing Uniforms And Laundry,22/06/2021,30001414,316.38 ,SMI Int Group
East Lindsey District Council,http://statistics.data.gov.uk/id/local-authority/32UC,Neighbourhoods,Clothing Uniforms And Laundry,08/07/2021,30001770,270.96 ,SMI Int Group
East Lindsey District Council,http://statistics.data.gov.uk/id/local-authority/32UC,Neighbourhoods,Clothing Uniforms And Laundry,15/07/2021,30001910,268.32 ,SMI Int Group
East Lindsey District Council,http://statistics.data.gov.uk/id/local-authority/32UC,Neighbourhoods,Clothing Uniforms And Laundry,23/07/2021,30002051,227.64 ,SMI Int Group
East Lindsey District Council,http://statistics.data.gov.uk/id/local-authority/32UC,Neighbourhoods,Clothing Uniforms And Laundry,23/07/2021,30002108,530.00 ,SMI Int Group
East Lindsey District Council,http://statistics.data.gov.uk/id/local-authority/32UC,Neighbourhoods,Furniture and Equipment,03/06/2021,30001451,"4,160.00 ",Broxap Ltd
East Lindsey District Council,http://statistics.data.gov.uk/id/local-authority/32UC,Neighbourhoods,Furniture and Equipment,03/06/2021,30001452,"4,160.00 ",Broxap Ltd
East Lindsey District Council,http://statistics.data.gov.uk/id/local-authority/32UC,Neighbourhoods,Grants and Contributions - Where a Service is Received,22/06/2021,30001953,"3,510.00 ",Norfolk County Council
East Lindsey District Council,http://statistics.data.gov.uk/id/local-authority/32UC,Neighbourhoods,Grounds Maintenance Contract (External),29/06/2021,30001707,"12,105.09 ",Glendale Grounds Management Limited
East Lindsey District Council,http://statistics.data.gov.uk/id/local-authority/32UC,Neighbourhoods,Materials and Consumables,08/06/2021,30000613,457.25 ,Eastern Shires Purchasing Organisation
East Lindsey District Council,http://statistics.data.gov.uk/id/local-authority/32UC,Neighbourhoods,Materials and Consumables,22/06/2021,30001596,388.00 ,Zep UK Ltd
East Lindsey District Council,http://statistics.data.gov.uk/id/local-authority/32UC,Neighbourhoods,Materials and Consumables,15/06/2021,30001656,346.00 ,Eastern Shires Purchasing Organisation
East Lindsey District Council,http://statistics.data.gov.uk/id/local-authority/32UC,Neighbourhoods,Materials and Consumables,22/06/2021,30001747,414.03 ,Overton (UK) Ltd
East Lindsey District Council,http://statistics.data.gov.uk/id/local-authority/32UC,Neighbourhoods,Materials and Consumables,15/07/2021,30001954,542.29 ,Reactec Ltd
East Lindsey District Council,http://statistics.data.gov.uk/id/local-authority/32UC,Neighbourhoods,Materials and Consumables,08/07/2021,30002117,507.85 ,Eastern Shires Purchasing Organisation
East Lindsey District Council,http://statistics.data.gov.uk/id/local-authority/32UC,Neighbourhoods,Other Private Contractors,08/06/2021,30001522,"38,599.92 ",Danfo UK Ltd
East Lindsey District Council,http://statistics.data.gov.uk/id/local-authority/32UC,Neighbourhoods,Professional and Contractors Fees,08/06/2021,30001523,382.72 ,Greenaway
East Lindsey District Council,http://statistics.data.gov.uk/id/local-authority/32UC,Neighbourhoods,Professional and Contractors Fees,10/06/2021,30001604,282.48 ,Blockfree Services Ltd
East Lindsey District Council,http://statistics.data.gov.uk/id/local-authority/32UC,Neighbourhoods,Professional and Contractors Fees,10/06/2021,30001610,742.00 ,Sid Dennis and Sons Ltd
East Lindsey District Council,http://statistics.data.gov.uk/id/local-authority/32UC,Neighbourhoods,Professional and Contractors Fees,01/07/2021,30001664,"3,217.08 ",Phs Group
East Lindsey District Council,http://statistics.data.gov.uk/id/local-authority/32UC,Neighbourhoods,Professional and Contractors Fees,15/06/2021,30001735,742.00 ,Sid Dennis and Sons Ltd
East Lindsey District Council,http://statistics.data.gov.uk/id/local-authority/32UC,Neighbourhoods,Professional and Contractors Fees,15/06/2021,30001737,530.00 ,Sid Dennis and Sons Ltd
East Lindsey District Council,http://statistics.data.gov.uk/id/local-authority/32UC,Neighbourhoods,Professional and Contractors Fees,15/06/2021,30001738,530.00 ,Sid Dennis and Sons Ltd
East Lindsey District Council,http://statistics.data.gov.uk/id/local-authority/32UC,Neighbourhoods,Professional and Contractors Fees,17/06/2021,30001739,848.00 ,Sid Dennis and Sons Ltd
East Lindsey District Council,http://statistics.data.gov.uk/id/local-authority/32UC,Neighbourhoods,Professional and Contractors Fees,24/06/2021,30001895,"1,140.14 ",Sid Dennis and Sons Ltd
East Lindsey District Council,http://statistics.data.gov.uk/id/local-authority/32UC,Neighbourhoods,Professional and Contractors Fees,22/06/2021,30001897,"5,717.80 ",B and B Tree Specialists
East Lindsey District Council,http://statistics.data.gov.uk/id/local-authority/32UC,Neighbourhoods,Professional and Contractors Fees,24/06/2021,30002002,676.27 ,Asbestos Compliance Management Services Ltd
East Lindsey District Council,http://statistics.data.gov.uk/id/local-authority/32UC,Neighbourhoods,Professional and Contractors Fees,01/07/2021,30002022,360.00 ,A Riddel
East Lindsey District Council,http://statistics.data.gov.uk/id/local-authority/32UC,Neighbourhoods,Professional and Contractors Fees,01/07/2021,30002058,636.00 ,Sid Dennis and Sons Ltd
East Lindsey District Council,http://statistics.data.gov.uk/id/local-authority/32UC,Neighbourhoods,Staff Training Expenses (Non-Payroll),22/06/2021,30001797,630.00 ,East Lincs Rural Training
East Lindsey District Council,http://statistics.data.gov.uk/id/local-authority/32UC,Neighbourhoods,Staff Training Expenses (Non-Payroll),06/07/2021,30002045,267.00 ,East Lincs Rural Training
East Lindsey District Council,http://statistics.data.gov.uk/id/local-authority/32UC,Neighbourhoods,Stationery,08/06/2021,30000613,65.35 ,Eastern Shires Purchasing Organisation
East Lindsey District Council,http://statistics.data.gov.uk/id/local-authority/32UC,Neighbourhoods,Vehicle Hire,10/06/2021,30001512,"1,200.00 ",Burdens Group Ltd
East Lindsey District Council,http://statistics.data.gov.uk/id/local-authority/32UC,Neighbourhoods,Water and Sewerage Charges,15/06/2021,30001395,454.37 ,Wave Anglian Water Business National Ltd
East Lindsey District Council,http://statistics.data.gov.uk/id/local-authority/32UC,Neighbourhoods,Water and Sewerage Charges,01/07/2021,30001588,"1,300.00 ",Aquam Water Services Ltd
East Lindsey District Council,http://statistics.data.gov.uk/id/local-authority/32UC,Neighbourhoods,Water and Sewerage Charges,01/07/2021,30001589,"1,300.00 ",Aquam Water Services Ltd
East Lindsey District Council,http://statistics.data.gov.uk/id/local-authority/32UC,Neighbourhoods,Water and Sewerage Charges,24/06/2021,30001659,334.61 ,Wave Anglian Water Business National Ltd
East Lindsey District Council,http://statistics.data.gov.uk/id/local-authority/32UC,Neighbourhoods,Water and Sewerage Charges,29/06/2021,30001734,685.10 ,Wave Anglian Water Business National Ltd
East Lindsey District Council,http://statistics.data.gov.uk/id/local-authority/32UC,Neighbourhoods,Workshop Parts,10/06/2021,30001661,"1,090.63 ",Chandlers (Farm Equipment) Ltd
East Lindsey District Council,http://statistics.data.gov.uk/id/local-authority/32UC,Organisational Improvement & Development,Staff Training Expenses (Non-Payroll),24/06/2021,30001892,89.76 ,First College
East Lindsey District Council,http://statistics.data.gov.uk/id/local-authority/32UC,"Performance, Governance & Commissioning",Catering (Non-Payroll),24/06/2021,30001545,94.00 ,Complete Business Solutions Group Ltd
East Lindsey District Council,http://statistics.data.gov.uk/id/local-authority/32UC,"Performance, Governance & Commissioning",Catering (Non-Payroll),10/06/2021,30001555,64.81 ,Complete Business Solutions Group Ltd
East Lindsey District Council,http://statistics.data.gov.uk/id/local-authority/32UC,"Performance, Governance & Commissioning",External Printing and Design Costs,08/06/2021,30001543,283.75 ,Civica Election Services
East Lindsey District Council,http://statistics.data.gov.uk/id/local-authority/32UC,"Performance, Governance & Commissioning",External Printing and Design Costs,08/06/2021,30001544,288.52 ,Civica Election Services
East Lindsey District Council,http://statistics.data.gov.uk/id/local-authority/32UC,"Performance, Governance & Commissioning",External Printing and Design Costs,24/06/2021,30001594,191.24 ,Civica Election Services
East Lindsey District Council,http://statistics.data.gov.uk/id/local-authority/32UC,"Performance, Governance & Commissioning",External Printing and Design Costs,10/06/2021,30001595,"1,901.07 ",Civica Election Services
East Lindsey District Council,http://statistics.data.gov.uk/id/local-authority/32UC,"Performance, Governance & Commissioning",External Printing and Design Costs,17/06/2021,30001837,"3,612.00 ",Print.UK.Com
East Lindsey District Council,http://statistics.data.gov.uk/id/local-authority/32UC,"Performance, Governance & Commissioning",Grants and Contributions to Outside Bodies - No Service Received,08/06/2021,30001493,475.00 ,1st Louth Brownies and Rainbows
East Lindsey District Council,http://statistics.data.gov.uk/id/local-authority/32UC,"Performance, Governance & Commissioning",Grants and Contributions to Outside Bodies - No Service Received,15/06/2021,30001494,"1,250.00 ",Skegness Natureland LTD
East Lindsey District Council,http://statistics.data.gov.uk/id/local-authority/32UC,"Performance, Governance & Commissioning",Grants and Contributions to Outside Bodies - No Service Received,17/06/2021,30001853,750.00 ,Revesby Church
East Lindsey District Council,http://statistics.data.gov.uk/id/local-authority/32UC,"Performance, Governance & Commissioning",Grants and Contributions to Outside Bodies - No Service Received,29/06/2021,30002073,500.00 ,The Parrot Zoo Trust
East Lindsey District Council,http://statistics.data.gov.uk/id/local-authority/32UC,"Performance, Governance & Commissioning",Postages,17/06/2021,30001460,762.00 ,Print.UK.Com
East Lindsey District Council,http://statistics.data.gov.uk/id/local-authority/32UC,"Performance, Governance & Commissioning",Postages,08/06/2021,30001543,267.38 ,Civica Election Services
East Lindsey District Council,http://statistics.data.gov.uk/id/local-authority/32UC,"Performance, Governance & Commissioning",Postages,08/06/2021,30001544,305.75 ,Civica Election Services
East Lindsey District Council,http://statistics.data.gov.uk/id/local-authority/32UC,"Performance, Governance & Commissioning",Postages,24/06/2021,30001594,200.50 ,Civica Election Services
East Lindsey District Council,http://statistics.data.gov.uk/id/local-authority/32UC,"Performance, Governance & Commissioning",Postages,10/06/2021,30001595,"2,121.58 ",Civica Election Services
East Lindsey District Council,http://statistics.data.gov.uk/id/local-authority/32UC,"Performance, Governance & Commissioning",Rent Payments,10/06/2021,30001591,400.00 ,Alford Corn Exchange Community Group
East Lindsey District Council,http://statistics.data.gov.uk/id/local-authority/32UC,"Performance, Governance & Commissioning",Rent Payments,10/06/2021,30001593,320.00 ,Louth Town Juniors Fc
East Lindsey District Council,http://statistics.data.gov.uk/id/local-authority/32UC,"Performance, Governance & Commissioning",Rent Payments,10/06/2021,30001599,400.00 ,Franklin Hall
East Lindsey District Council,http://statistics.data.gov.uk/id/local-authority/32UC,"Performance, Governance & Commissioning",Rent Payments,22/06/2021,30001889,350.00 ,Coronation Hall Management Committee
East Lindsey District Council,http://statistics.data.gov.uk/id/local-authority/32UC,"Performance, Governance & Commissioning",Rent Payments,01/07/2021,30001990,545.00 ,Covenham Parish Council
East Lindsey District Council,http://statistics.data.gov.uk/id/local-authority/32UC,"Performance, Governance & Commissioning",Rent Payments,29/06/2021,30002009,"6,360.67 ",Magna Vitae
East Lindsey District Council,http://statistics.data.gov.uk/id/local-authority/32UC,"Performance, Governance & Commissioning",Rent Payments,08/07/2021,30002207,300.00 ,Huttoft Village Hall
East Lindsey District Council,http://statistics.data.gov.uk/id/local-authority/32UC,"Performance, Governance & Commissioning",Staff Training Expenses (Non-Payroll),23/07/2021,30002001,573.75 ,Association of Electoral Administrators
East Lindsey District Council,http://statistics.data.gov.uk/id/local-authority/32UC,"Performance, Governance & Commissioning",Stationery,24/06/2021,30001545,23.40 ,Complete Business Solutions Group Ltd
East Lindsey District Council,http://statistics.data.gov.uk/id/local-authority/32UC,"Performance, Governance & Commissioning",Stationery,10/06/2021,30001555,"1,843.32 ",Complete Business Solutions Group Ltd
East Lindsey District Council,http://statistics.data.gov.uk/id/local-authority/32UC,"Performance, Governance & Commissioning",Stationery,15/06/2021,30001764,"1,167.00 ",Shaw and Sons Ltd
East Lindsey District Council,http://statistics.data.gov.uk/id/local-authority/32UC,"Performance, Governance & Commissioning",Subscriptions to Organisations and Other Bodies,23/07/2021,30002087,400.00 ,Frontline Consulting Associates Ltd
East Lindsey District Council,http://statistics.data.gov.uk/id/local-authority/32UC,Planning Policy,Professional and Contractors Fees,15/06/2021,30001794,"9,190.00 ",Nexus Planning Ltd
East Lindsey District Council,http://statistics.data.gov.uk/id/local-authority/32UC,Property,Agency Staff,10/06/2021,30001531,406.08 ,The Workshop (Wisbech) Ltd
East Lindsey District Council,http://statistics.data.gov.uk/id/local-authority/32UC,Property,Agency Staff,17/06/2021,30001753,406.08 ,The Workshop (Wisbech) Ltd
East Lindsey District Council,http://statistics.data.gov.uk/id/local-authority/32UC,Property,Agency Staff,01/07/2021,30002020,507.60 ,The Workshop (Wisbech) Ltd
East Lindsey District Council,http://statistics.data.gov.uk/id/local-authority/32UC,Property,Buildings Maintenance - Programmed,24/06/2021,30001446,279.44 ,TVF UK Limited
East Lindsey District Council,http://statistics.data.gov.uk/id/local-authority/32UC,Property,Buildings Maintenance - Programmed,24/06/2021,30001503,217.55 ,TVF UK Limited
East Lindsey District Council,http://statistics.data.gov.uk/id/local-authority/32UC,Property,Buildings Maintenance - Programmed,29/06/2021,30001669,"1,364.50 ",Qualsurv International Ltd
East Lindsey District Council,http://statistics.data.gov.uk/id/local-authority/32UC,Property,Buildings Maintenance - Programmed,08/07/2021,30001727,637.18 ,TVF UK Limited
East Lindsey District Council,http://statistics.data.gov.uk/id/local-authority/32UC,Property,Buildings Maintenance - Programmed,24/06/2021,30001789,675.00 ,Airco Refrigeration Air Conditioning Ltd
East Lindsey District Council,http://statistics.data.gov.uk/id/local-authority/32UC,Property,Buildings Maintenance - Programmed,08/07/2021,30001821,360.00 ,TVF UK Limited
East Lindsey District Council,http://statistics.data.gov.uk/id/local-authority/32UC,Property,Buildings Maintenance - Programmed,24/06/2021,30001875,"5,400.00 ",Bates Environmental Ltd
East Lindsey District Council,http://statistics.data.gov.uk/id/local-authority/32UC,Property,Buildings Maintenance - Programmed,22/06/2021,30001916,953.98 ,EJ Parker Technical Services (Louth) Ltd
East Lindsey District Council,http://statistics.data.gov.uk/id/local-authority/32UC,Property,Buildings Maintenance - Responsive,08/06/2021,30001499,"3,750.00 ",Anglian Water
East Lindsey District Council,http://statistics.data.gov.uk/id/local-authority/32UC,Property,Buildings Maintenance - Responsive,24/06/2021,30001530,418.20 ,MKM Building Supplies Holdings Limited
East Lindsey District Council,http://statistics.data.gov.uk/id/local-authority/32UC,Property,Buildings Maintenance - Responsive,10/06/2021,30001554,"1,327.13 ",Harlite Installations Ltd
East Lindsey District Council,http://statistics.data.gov.uk/id/local-authority/32UC,Property,Buildings Maintenance - Responsive,10/06/2021,30001646,"3,297.65 ",Harlite Installations Ltd
East Lindsey District Council,http://statistics.data.gov.uk/id/local-authority/32UC,Property,Buildings Maintenance - Responsive,22/06/2021,30001647,774.11 ,Harlite Installations Ltd
East Lindsey District Council,http://statistics.data.gov.uk/id/local-authority/32UC,Property,Buildings Maintenance - Responsive,08/07/2021,30001744,476.30 ,Geze UK Ltd
East Lindsey District Council,http://statistics.data.gov.uk/id/local-authority/32UC,Property,Buildings Maintenance - Responsive,17/06/2021,30001843,288.20 ,Andrew P Chick Ecology
East Lindsey District Council,http://statistics.data.gov.uk/id/local-authority/32UC,Property,Buildings Maintenance - Responsive,17/06/2021,30001879,"21,425.93 ",Gelder Ltd
East Lindsey District Council,http://statistics.data.gov.uk/id/local-authority/32UC,Property,Buildings Maintenance - Responsive,29/06/2021,30001949,"3,325.52 ",Harlite Installations Ltd
East Lindsey District Council,http://statistics.data.gov.uk/id/local-authority/32UC,Property,Buildings Maintenance - Responsive,23/07/2021,30002063,480.00 ,Stowlin Ltd
East Lindsey District Council,http://statistics.data.gov.uk/id/local-authority/32UC,Property,Buildings Maintenance - Responsive,29/06/2021,30002082,"2,820.10 ",Ajet Drain Services Ltd
East Lindsey District Council,http://statistics.data.gov.uk/id/local-authority/32UC,Property,Cleaning Contract,10/06/2021,30001517,865.00 ,Easy Clean Marshchapel Ltd
East Lindsey District Council,http://statistics.data.gov.uk/id/local-authority/32UC,Property,Cleaning Contract,10/06/2021,30001533,560.00 ,Easy Clean Marshchapel Ltd
East Lindsey District Council,http://statistics.data.gov.uk/id/local-authority/32UC,Property,Electricity,10/06/2021,30001560,261.43 ,British Gas
East Lindsey District Council,http://statistics.data.gov.uk/id/local-authority/32UC,Property,Furniture and Equipment,24/06/2021,30001457,"1,175.95 ",International Parking Systems UK Grp Ltd
East Lindsey District Council,http://statistics.data.gov.uk/id/local-authority/32UC,Property,Furniture and Equipment,08/06/2021,30001507,217.68 ,Waterlogic UK Angel Springs Ta
East Lindsey District Council,http://statistics.data.gov.uk/id/local-authority/32UC,Property,Furniture and Equipment,08/06/2021,30001508,683.40 ,Waterlogic UK Angel Springs Ta
East Lindsey District Council,http://statistics.data.gov.uk/id/local-authority/32UC,Property,Furniture and Equipment,08/06/2021,30001509,"1,306.08 ",Waterlogic UK Angel Springs Ta
East Lindsey District Council,http://statistics.data.gov.uk/id/local-authority/32UC,Property,Furniture and Equipment,08/06/2021,30001518,217.68 ,Waterlogic UK Angel Springs Ta
East Lindsey District Council,http://statistics.data.gov.uk/id/local-authority/32UC,Property,Furniture and Equipment,08/06/2021,30001521,653.04 ,Waterlogic UK Angel Springs Ta
East Lindsey District Council,http://statistics.data.gov.uk/id/local-authority/32UC,Property,Furniture and Equipment,10/06/2021,30001582,217.68 ,Waterlogic UK Angel Springs Ta
East Lindsey District Council,http://statistics.data.gov.uk/id/local-authority/32UC,Property,Furniture and Equipment,22/06/2021,30001687,565.20 ,Paperwork
East Lindsey District Council,http://statistics.data.gov.uk/id/local-authority/32UC,Property,Furniture and Equipment,17/06/2021,30001700,"1,035.98 ",GRS Signs Ltd
East Lindsey District Council,http://statistics.data.gov.uk/id/local-authority/32UC,Property,Furniture and Equipment,15/06/2021,30001774,300.00 ,Digicube Ltd
East Lindsey District Council,http://statistics.data.gov.uk/id/local-authority/32UC,Property,Insurance,10/06/2021,30001569,895.00 ,Lawsure Insurance
East Lindsey District Council,http://statistics.data.gov.uk/id/local-authority/32UC,Property,License Fees,29/06/2021,30002040,"2,000.00 ",PERSONAL INFORMATION REDACTED
East Lindsey District Council,http://statistics.data.gov.uk/id/local-authority/32UC,Property,Mobile Phones,08/07/2021,30001826,348.83 ,Vodafone Ltd Corporate
East Lindsey District Council,http://statistics.data.gov.uk/id/local-authority/32UC,Property,Payments to Bodies in Respect of Income Collected,24/06/2021,30001374,"7,319.96 ",Tesco Stores Ltd
East Lindsey District Council,http://statistics.data.gov.uk/id/local-authority/32UC,Property,Professional and Contractors Fees,17/06/2021,30001419,"4,185.00 ",Biffa Waste Services Ltd
East Lindsey District Council,http://statistics.data.gov.uk/id/local-authority/32UC,Property,Professional and Contractors Fees,03/06/2021,30001442,"1,868.50 ",Chipside Ltd
East Lindsey District Council,http://statistics.data.gov.uk/id/local-authority/32UC,Property,Professional and Contractors Fees,03/06/2021,30001444,411.15 ,Chipside Ltd
East Lindsey District Council,http://statistics.data.gov.uk/id/local-authority/32UC,Property,Professional and Contractors Fees,03/06/2021,30001445,491.53 ,Chipside Ltd
East Lindsey District Council,http://statistics.data.gov.uk/id/local-authority/32UC,Property,Professional and Contractors Fees,08/06/2021,30001470,"1,821.70 ",Biffa Waste Services Ltd
East Lindsey District Council,http://statistics.data.gov.uk/id/local-authority/32UC,Property,Professional and Contractors Fees,10/06/2021,30001484,"1,085.00 ",M.A.P Security Solutions Ltd
East Lindsey District Council,http://statistics.data.gov.uk/id/local-authority/32UC,Property,Professional and Contractors Fees,17/06/2021,30001497,400.00 ,Restore Datashred
East Lindsey District Council,http://statistics.data.gov.uk/id/local-authority/32UC,Property,Professional and Contractors Fees,29/06/2021,30001529,"15,806.49 ",International Parking Systems UK Grp Ltd
East Lindsey District Council,http://statistics.data.gov.uk/id/local-authority/32UC,Property,Professional and Contractors Fees,29/06/2021,30001725,724.34 ,Chipside Ltd
East Lindsey District Council,http://statistics.data.gov.uk/id/local-authority/32UC,Property,Professional and Contractors Fees,29/06/2021,30001726,327.31 ,Chipside Ltd
East Lindsey District Council,http://statistics.data.gov.uk/id/local-authority/32UC,Property,Professional and Contractors Fees,22/06/2021,30001820,"3,690.00 ",Michael Page Int Recruitment Ltd
East Lindsey District Council,http://statistics.data.gov.uk/id/local-authority/32UC,Property,Professional and Contractors Fees,24/06/2021,30001911,310.00 ,Sid Dennis and Sons Ltd
East Lindsey District Council,http://statistics.data.gov.uk/id/local-authority/32UC,Property,Professional and Contractors Fees,22/06/2021,30001929,"1,137.75 ",Michael Page Int Recruitment Ltd
East Lindsey District Council,http://statistics.data.gov.uk/id/local-authority/32UC,Property,Professional and Contractors Fees,22/06/2021,30001948,404.00 ,Olsens
East Lindsey District Council,http://statistics.data.gov.uk/id/local-authority/32UC,Property,Professional and Contractors Fees,13/07/2021,30002015,391.67 ,Minster Home Improvements Ltd
East Lindsey District Council,http://statistics.data.gov.uk/id/local-authority/32UC,Property,Rent Payments,06/07/2021,30001772,"5,833.33 ",Innes England
East Lindsey District Council,http://statistics.data.gov.uk/id/local-authority/32UC,Property,Rent Payments,15/07/2021,30002000,"5,833.33 ",Innes England
East Lindsey District Council,http://statistics.data.gov.uk/id/local-authority/32UC,Property,Rent Payments,29/06/2021,30002060,"4,468.71 ",Louth Education Comm Interest Company
East Lindsey District Council,http://statistics.data.gov.uk/id/local-authority/32UC,Property,Water and Sewerage Charges,24/06/2021,30001658,"9,179.88 ",Wave Anglian Water Business National Ltd
East Lindsey District Council,http://statistics.data.gov.uk/id/local-authority/32UC,Property,Water and Sewerage Charges,29/06/2021,30001905,389.43 ,Wave Anglian Water Business National Ltd
East Lindsey District Council,http://statistics.data.gov.uk/id/local-authority/32UC,Property,Water and Sewerage Charges,29/06/2021,30001907,"1,342.72 ",Wave Anglian Water Business National Ltd
East Lindsey District Council,http://statistics.data.gov.uk/id/local-authority/32UC,Property,Water and Sewerage Charges,24/06/2021,30001914,"9,179.88 ",Wave Anglian Water Business National Ltd
East Lindsey District Council,http://statistics.data.gov.uk/id/local-authority/32UC,Property,Water and Sewerage Charges,22/06/2021,30001915,"6,347.40 ",Wave Anglian Water Business National Ltd
East Lindsey District Council,http://statistics.data.gov.uk/id/local-authority/32UC,Property,Water and Sewerage Charges,29/06/2021,30001943,"2,020.88 ",Wave Anglian Water Business National Ltd
East Lindsey District Council,http://statistics.data.gov.uk/id/local-authority/32UC,Public Protection,Other Miscellaneous Expenses,29/06/2021,30001648,300.00 ,BT Redcare
East Lindsey District Council,http://statistics.data.gov.uk/id/local-authority/32UC,Public Protection,Professional and Contractors Fees,03/06/2021,30001454,747.23 ,Fenwold Veterinary Practice Ltd
East Lindsey District Council,http://statistics.data.gov.uk/id/local-authority/32UC,Public Protection,Professional and Contractors Fees,29/06/2021,30001884,"1,220.84 ",Rase Veterinary Equine
East Lindsey District Council,http://statistics.data.gov.uk/id/local-authority/32UC,Public Protection,Professional Fees,03/06/2021,30001448,316.66 ,Hill Phelan Equine Farm Vet Surgeons
East Lindsey District Council,http://statistics.data.gov.uk/id/local-authority/32UC,Public Protection,Professional Fees,03/06/2021,30001453,239.97 ,Fenwold Veterinary Practice Ltd
East Lindsey District Council,http://statistics.data.gov.uk/id/local-authority/32UC,Public Protection,Professional Fees,15/06/2021,30001762,254.16 ,Hill Phelan Equine Farm Vet Surgeons
East Lindsey District Council,http://statistics.data.gov.uk/id/local-authority/32UC,Public Protection,Professional Fees,24/06/2021,30001919,379.99 ,Hill Phelan Equine Farm Vet Surgeons
East Lindsey District Council,http://statistics.data.gov.uk/id/local-authority/32UC,Theatre,Buildings Maintenance - Responsive,20/07/2021,30002072,331.75 ,Airco Refrigeration Air Conditioning Ltd
East Lindsey District Council,http://statistics.data.gov.uk/id/local-authority/32UC,Waste,Agency Staff,03/06/2021,30001404,658.08 ,Reilyn Ltd
East Lindsey District Council,http://statistics.data.gov.uk/id/local-authority/32UC,Waste,Agency Staff,08/06/2021,30001534,"4,726.50 ",Red Rock Partnership Ltd
East Lindsey District Council,http://statistics.data.gov.uk/id/local-authority/32UC,Waste,Agency Staff,08/06/2021,30001538,"5,099.85 ",Red Rock Partnership Ltd
East Lindsey District Council,http://statistics.data.gov.uk/id/local-authority/32UC,Waste,Agency Staff,10/06/2021,30001612,"6,042.10 ",Red Rock Partnership Ltd
East Lindsey District Council,http://statistics.data.gov.uk/id/local-authority/32UC,Waste,Agency Staff,15/06/2021,30001678,658.08 ,Reilyn Ltd
East Lindsey District Council,http://statistics.data.gov.uk/id/local-authority/32UC,Waste,Agency Staff,15/06/2021,30001689,710.43 ,Reilyn Ltd
East Lindsey District Council,http://statistics.data.gov.uk/id/local-authority/32UC,Waste,Agency Staff,15/06/2021,30001690,788.93 ,Reilyn Ltd
East Lindsey District Council,http://statistics.data.gov.uk/id/local-authority/32UC,Waste,Agency Staff,17/06/2021,30001721,787.28 ,Reilyn Ltd
East Lindsey District Council,http://statistics.data.gov.uk/id/local-authority/32UC,Waste,Agency Staff,17/06/2021,30001722,"6,326.27 ",Red Rock Partnership Ltd
East Lindsey District Council,http://statistics.data.gov.uk/id/local-authority/32UC,Waste,Agency Staff,24/06/2021,30001856,646.00 ,Reilyn Ltd
East Lindsey District Council,http://statistics.data.gov.uk/id/local-authority/32UC,Waste,Agency Staff,24/06/2021,30001898,"5,671.83 ",Red Rock Partnership Ltd
East Lindsey District Council,http://statistics.data.gov.uk/id/local-authority/32UC,Waste,Agency Staff,15/07/2021,30002034,346.35 ,The Best Connection Group Ltd
East Lindsey District Council,http://statistics.data.gov.uk/id/local-authority/32UC,Waste,Agency Staff,01/07/2021,30002041,646.00 ,Reilyn Ltd
East Lindsey District Council,http://statistics.data.gov.uk/id/local-authority/32UC,Waste,Agency Staff,01/07/2021,30002066,"6,170.05 ",Red Rock Partnership Ltd
East Lindsey District Council,http://statistics.data.gov.uk/id/local-authority/32UC,Waste,Agency Staff,23/07/2021,30002103,457.56 ,The Best Connection Group Ltd
East Lindsey District Council,http://statistics.data.gov.uk/id/local-authority/32UC,Waste,Course Fees,15/06/2021,30001800,"1,328.33 ",TIS Training Consultancy
East Lindsey District Council,http://statistics.data.gov.uk/id/local-authority/32UC,Waste,Course Fees,15/06/2021,30001801,"1,328.33 ",TIS Training Consultancy
East Lindsey District Council,http://statistics.data.gov.uk/id/local-authority/32UC,Waste,Employee Professional Subscriptions (Non-Payroll),10/06/2021,30001660,738.00 ,NABMA
East Lindsey District Council,http://statistics.data.gov.uk/id/local-authority/32UC,Waste,Fuel and Oil,23/07/2021,30002033,"4,721.87 ",Allstar Business Solutions Ltd
East Lindsey District Council,http://statistics.data.gov.uk/id/local-authority/32UC,Waste,Fuel and Oil,29/06/2021,30002064,"4,721.87 ",Allstar Business Solutions Ltd
East Lindsey District Council,http://statistics.data.gov.uk/id/local-authority/32UC,Waste,Maintenance,15/06/2021,30001787,350.00 ,M J Windscreens Ltd
East Lindsey District Council,http://statistics.data.gov.uk/id/local-authority/32UC,Waste,Maintenance,15/06/2021,30001788,350.00 ,M J Windscreens Ltd
East Lindsey District Council,http://statistics.data.gov.uk/id/local-authority/32UC,Waste,Maintenance,23/07/2021,30002107,"1,050.00 ",Excel Trucks Ltd
East Lindsey District Council,http://statistics.data.gov.uk/id/local-authority/32UC,Waste,Materials and Consumables,10/06/2021,30001550,"2,314.00 ",Bellini Wholesale Nottingham Ltd
East Lindsey District Council,http://statistics.data.gov.uk/id/local-authority/32UC,Waste,Materials and Consumables,06/07/2021,30002074,"16,230.00 ",ESE Ltd
East Lindsey District Council,http://statistics.data.gov.uk/id/local-authority/32UC,Waste,Other Private Contractors,24/06/2021,30001539,"1,053.21 ",Glass Recycling UK Ltd
East Lindsey District Council,http://statistics.data.gov.uk/id/local-authority/32UC,Waste,Professional and Contractors Fees,17/06/2021,30001866,594.00 ,Licence Bureau
East Lindsey District Council,http://statistics.data.gov.uk/id/local-authority/32UC,Waste,Professional and Contractors Fees,17/06/2021,30001867,582.00 ,Licence Bureau
East Lindsey District Council,http://statistics.data.gov.uk/id/local-authority/32UC,Waste,Professional and Contractors Fees,17/06/2021,30001871,612.00 ,Licence Bureau
East Lindsey District Council,http://statistics.data.gov.uk/id/local-authority/32UC,Waste,Professional and Contractors Fees,20/07/2021,30002006,790.00 ,Safetykleen
East Lindsey District Council,http://statistics.data.gov.uk/id/local-authority/32UC,Waste,Professional and Contractors Fees,01/07/2021,30002112,542.29 ,Systematic Print Management Ltd
East Lindsey District Council,http://statistics.data.gov.uk/id/local-authority/32UC,Waste,Professional and Contractors Fees,01/07/2021,30002113,395.01 ,Systematic Print Management Ltd
East Lindsey District Council,http://statistics.data.gov.uk/id/local-authority/32UC,Waste,Professional and Contractors Fees,01/07/2021,30002114,338.31 ,Systematic Print Management Ltd
East Lindsey District Council,http://statistics.data.gov.uk/id/local-authority/32UC,Waste,Rent Payments,22/06/2021,30001723,"2,900.44 ",Lincolnshire County Council
East Lindsey District Council,http://statistics.data.gov.uk/id/local-authority/32UC,Waste,Workshop Parts,24/06/2021,30001434,"1,175.00 ",Partic Motor Spares Ltd
East Lindsey District Council,http://statistics.data.gov.uk/id/local-authority/32UC,Waste,Workshop Parts,15/06/2021,30001513,"8,915.00 ",Vaculug Technologies Ltd
East Lindsey District Council,http://statistics.data.gov.uk/id/local-authority/32UC,Waste,Workshop Parts,29/06/2021,30001714,999.99 ,Partic Motor Spares Ltd
East Lindsey District Council,http://statistics.data.gov.uk/id/local-authority/32UC,Waste,Workshop Parts,15/06/2021,30001805,"2,876.55 ",Go Plant Fleet Services Ltd
East Lindsey District Council,http://statistics.data.gov.uk/id/local-authority/32UC,Waste,Workshop Parts,08/07/2021,30001860,428.57 ,Partic Motor Spares Ltd
East Lindsey District Council,http://statistics.data.gov.uk/id/local-authority/32UC,Waste,Workshop Parts,13/07/2021,30001861,769.20 ,Partic Motor Spares Ltd
East Lindsey District Council,http://statistics.data.gov.uk/id/local-authority/32UC,Waste,Workshop Parts,08/07/2021,30001927,"1,633.33 ",Partic Motor Spares Ltd
East Lindsey District Council,http://statistics.data.gov.uk/id/local-authority/32UC,Waste,Workshop Parts,20/07/2021,30001931,220.80 ,Partic Motor Spares Ltd
East Lindsey District Council,http://statistics.data.gov.uk/id/local-authority/32UC,Waste,Workshop Parts,15/07/2021,30002012,865.00 ,Partic Motor Spares Ltd
East Lindsey District Council,http://statistics.data.gov.uk/id/local-authority/32UC,Waste,Workshop Parts,15/07/2021,30002077,399.00 ,Partic Motor Spares Ltd
East Lindsey District Council,http://statistics.data.gov.uk/id/local-authority/32UC,Waste,Workshop Parts,08/07/2021,30002092,"1,016.67 ",Partic Motor Spares Ltd
